[Event "Titled Tuesday Blitz May 9 Early 2023"]
[White "Rodshtein, Maxim"]
[Black "Kollars, Dmitrij"]
[WhiteFideId "2806851"]
[BlackFideId "12909572"]
[WhiteElo "2555"]
[BlackElo "2584"]
[Result "0-1"]
[Round "08"]
[TimeControl "180+2"]
[Date "2023.05.09"]
[WhiteClock "0:00:00"]
[BlackClock "0:00:18"]

1. d4 {[%clk 0:03:00]}  Nf6 {[%clk 0:03:00]} 2. Nf3 {[%clk 0:03:01]}  d5 {[%clk 0:03:00]} 3. e3 {[%clk 0:03:01]}  c5 {[%clk 0:02:59]} 4. Nbd2 {[%clk 0:02:59]}  Nc6 {[%clk 0:02:57]} 5. c3 {[%clk 0:02:57]}  cxd4 {[%clk 0:02:52]} 6. exd4 {[%clk 0:02:57]}  Bf5 {[%clk 0:02:51]} 7. Qb3 {[%clk 0:02:51]}  Qc7 {[%clk 0:02:50]} 8. Nh4 {[%clk 0:02:44]}  Bd7 {[%clk 0:02:11]} 9. Bd3 {[%clk 0:02:34]}  e5 {[%clk 0:02:07]} 10. dxe5 {[%clk 0:02:33]}  Nxe5 {[%clk 0:02:08]} 11. Bb5 {[%clk 0:02:28]}  Bc5 {[%clk 0:02:00]} 12. Bxd7+ {[%clk 0:02:07]}  Qxd7 {[%clk 0:02:01]} 13. O-O {[%clk 0:02:04]}  O-O {[%clk 0:02:00]} 14. Ndf3 {[%clk 0:01:35]}  Nc6 {[%clk 0:01:53]} 15. Qb5 {[%clk 0:01:16]}  Bb6 {[%clk 0:01:47]} 16. Qd3 {[%clk 0:01:15]}  Rfe8 {[%clk 0:01:36]} 17. Nf5 {[%clk 0:01:05]}  Ne4 {[%clk 0:01:36]} 18. N5d4 {[%clk 0:01:03]}  Na5 {[%clk 0:01:21]} 19. Bf4 {[%clk 0:00:59]}  Rac8 {[%clk 0:01:16]} 20. Rfe1 {[%clk 0:00:53]}  Nc4 {[%clk 0:01:16]} 21. Re2 {[%clk 0:00:53]}  Nc5 {[%clk 0:01:07]} 22. Qc2 {[%clk 0:00:34]}  Rxe2 {[%clk 0:01:07]} 23. Nxe2 {[%clk 0:00:34]}  Ne6 {[%clk 0:01:00]} 24. Rd1 {[%clk 0:00:31]}  h6 {[%clk 0:00:53]} 25. Bg3 {[%clk 0:00:29]}  Qc6 {[%clk 0:00:38]} 26. b3 {[%clk 0:00:27]}  Nd6 {[%clk 0:00:35]} 27. Bxd6 {[%clk 0:00:21]}  Qxd6 {[%clk 0:00:35]} 28. Qd3 {[%clk 0:00:18]}  Qa3 {[%clk 0:00:33]} 29. Qd2 {[%clk 0:00:17]}  Nc5 {[%clk 0:00:32]} 30. Qxd5 {[%clk 0:00:15]}  Rd8 {[%clk 0:00:31]} 31. Qxd8+ {[%clk 0:00:15]}  Bxd8 {[%clk 0:00:32]} 32. Rxd8+ {[%clk 0:00:16]}  Kh7 {[%clk 0:00:33]} 33. b4 {[%clk 0:00:13]}  Qxa2 {[%clk 0:00:30]} 34. Ng3 {[%clk 0:00:04]}  Ne4 {[%clk 0:00:25]} 35. Rd7 {[%clk 0:00:01]}  Qxf2+ {[%clk 0:00:20]} 36. Kh1 {[%clk 0:00:00]}  Qe3 {[%clk 0:00:18]} 0-1


[Site "https://www.chess.com"]

[Event "Titled Tuesday Blitz May 9 Early 2023"]
[White "Sargsyan, Shant"]
[Black "Zhigalko, Sergei"]
[WhiteFideId "13306766"]
[BlackFideId "13502956"]
[WhiteElo "2628"]
[BlackElo "2626"]
[Result "0-1"]
[Round "08"]
[TimeControl "180+2"]
[Date "2023.05.09"]
[WhiteClock "0:00:00"]
[BlackClock "0:00:03"]

1. c4 {[%clk 0:03:00]}  e5 {[%clk 0:02:59]} 2. g3 {[%clk 0:02:54]}  Nf6 {[%clk 0:02:59]} 3. Bg2 {[%clk 0:02:53]}  c6 {[%clk 0:02:59]} 4. d4 {[%clk 0:02:53]}  exd4 {[%clk 0:03:00]} 5. Qxd4 {[%clk 0:02:52]}  Na6 {[%clk 0:03:01]} 6. Nf3 {[%clk 0:02:51]}  Bc5 {[%clk 0:03:01]} 7. Qe5+ {[%clk 0:02:51]}  Be7 {[%clk 0:03:01]} 8. O-O {[%clk 0:02:50]}  O-O {[%clk 0:03:01]} 9. Rd1 {[%clk 0:02:50]}  Re8 {[%clk 0:03:02]} 10. Qf4 {[%clk 0:02:34]}  Nc5 {[%clk 0:02:57]} 11. Nc3 {[%clk 0:02:32]}  d6 {[%clk 0:02:52]} 12. b3 {[%clk 0:02:31]}  a5 {[%clk 0:02:51]} 13. Bb2 {[%clk 0:02:31]}  Qb6 {[%clk 0:02:51]} 14. Rab1 {[%clk 0:02:25]}  h6 {[%clk 0:02:50]} 15. Qd4 {[%clk 0:02:23]}  Bf5 {[%clk 0:02:44]} 16. e4 {[%clk 0:02:13]}  Bh7 {[%clk 0:02:44]} 17. Re1 {[%clk 0:02:11]}  Bf8 {[%clk 0:02:41]} 18. Nd2 {[%clk 0:02:07]}  Rad8 {[%clk 0:02:16]} 19. Ba1 {[%clk 0:02:05]}  Qc7 {[%clk 0:02:14]} 20. Rbc1 {[%clk 0:02:02]}  Ng4 {[%clk 0:02:07]} 21. Nf3 {[%clk 0:01:41]}  Ne6 {[%clk 0:01:48]} 22. Qd2 {[%clk 0:01:41]}  Nc5 {[%clk 0:01:48]} 23. Nd4 {[%clk 0:01:33]}  a4 {[%clk 0:01:24]} 24. h3 {[%clk 0:01:33]}  Ne5 {[%clk 0:01:24]} 25. Re3 {[%clk 0:01:33]}  axb3 {[%clk 0:01:23]} 26. axb3 {[%clk 0:01:34]}  Ra8 {[%clk 0:01:07]} 27. f4 {[%clk 0:01:32]}  Nxb3 {[%clk 0:00:49]} 28. Nxb3 {[%clk 0:01:29]}  Nxc4 {[%clk 0:00:50]} 29. Qe2 {[%clk 0:01:28]}  Nxe3 {[%clk 0:00:49]} 30. Qxe3 {[%clk 0:01:29]}  d5 {[%clk 0:00:43]} 31. Nxd5 {[%clk 0:01:24]}  Qd8 {[%clk 0:00:40]} 32. Nc3 {[%clk 0:01:20]}  Ra3 {[%clk 0:00:39]} 33. Ne2 {[%clk 0:01:05]}  Qa8 {[%clk 0:00:23]} 34. Bb2 {[%clk 0:00:48]}  Ra2 {[%clk 0:00:23]} 35. Bc3 {[%clk 0:00:41]}  Qa3 {[%clk 0:00:20]} 36. Rb1 {[%clk 0:00:24]}  Qa4 {[%clk 0:00:18]} 37. Nd2 {[%clk 0:00:19]}  Qa6 {[%clk 0:00:10]} 38. Kh2 {[%clk 0:00:18]}  Rd8 {[%clk 0:00:06]} 39. Nd4 {[%clk 0:00:12]}  Bc5 {[%clk 0:00:06]} 40. Rd1 {[%clk 0:00:06]}  Ra3 {[%clk 0:00:05]} 41. N2f3 {[%clk 0:00:06]}  Qc4 {[%clk 0:00:04]} 42. Rc1 {[%clk 0:00:05]}  b5 {[%clk 0:00:03]} 43. f5 {[%clk 0:00:04]}  b4 {[%clk 0:00:03]} 44. Bd2 {[%clk 0:00:04]}  Qxc1 {[%clk 0:00:01]} 45. Bxc1 {[%clk 0:00:05]}  Rxe3 {[%clk 0:00:02]} 46. Bxe3 {[%clk 0:00:06]}  b3 {[%clk 0:00:02]} 47. Bf1 {[%clk 0:00:06]}  b2 {[%clk 0:00:02]} 48. Bd3 {[%clk 0:00:06]}  Bb6 {[%clk 0:00:01]} 49. Bc2 {[%clk 0:00:06]}  c5 {[%clk 0:00:01]} 50. Nb5 {[%clk 0:00:04]}  Rb8 {[%clk 0:00:01]} 51. Nc3 {[%clk 0:00:04]}  c4 {[%clk 0:00:01]} 52. Bxb6 {[%clk 0:00:03]}  Rxb6 {[%clk 0:00:02]} 53. Kg2 {[%clk 0:00:04]}  Kf8 {[%clk 0:00:02]} 54. g4 {[%clk 0:00:04]}  Bg8 {[%clk 0:00:02]} 55. Kf2 {[%clk 0:00:05]}  f6 {[%clk 0:00:03]} 56. Ke3 {[%clk 0:00:05]}  Rd6 {[%clk 0:00:02]} 57. Nd4 {[%clk 0:00:04]}  Ke8 {[%clk 0:00:02]} 58. Nd1 {[%clk 0:00:04]}  Rb6 {[%clk 0:00:01]} 59. Nc3 {[%clk 0:00:05]}  Rd6 {[%clk 0:00:02]} 60. Ba4+ {[%clk 0:00:05]}  Ke7 {[%clk 0:00:01]} 61. Bb5 {[%clk 0:00:04]}  Rb6 {[%clk 0:00:01]} 62. Kd2 {[%clk 0:00:02]}  Kd6 {[%clk 0:00:01]} 63. Ba4 {[%clk 0:00:02]}  b1=Q {[%clk 0:00:01]} 64. Bc2 {[%clk 0:00:02]}  Qb2 {[%clk 0:00:01]} 65. e5+ {[%clk 0:00:02]}  fxe5 {[%clk 0:00:01]} 66. Ne4+ {[%clk 0:00:03]}  Kc7 {[%clk 0:00:02]} 67. Nf3 {[%clk 0:00:02]}  Qb4+ {[%clk 0:00:02]} 68. Nc3 {[%clk 0:00:02]}  Bd5 {[%clk 0:00:03]} 69. Nxe5 {[%clk 0:00:02]}  Bb7 {[%clk 0:00:03]} 70. f6 {[%clk 0:00:01]}  Rd6+ {[%clk 0:00:03]} 71. Kc1 {[%clk 0:00:00]}  Qa3+ {[%clk 0:00:03]} 0-1


[Site "https://www.chess.com"]

[Event "Titled Tuesday Blitz May 9 Early 2023"]
[White "Nguyen, Ngoc Truong Son"]
[Black "Yuan, Qingyu"]
[WhiteFideId "12401110"]
[BlackFideId "8609772"]
[WhiteElo "2556"]
[BlackElo "2359"]
[Result "1-0"]
[Round "08"]
[TimeControl "180+2"]
[Date "2023.05.09"]
[WhiteClock "0:00:05"]
[BlackClock "0:00:03"]

1. d4 {[%clk 0:02:57]}  e6 {[%clk 0:02:58]} 2. Nf3 {[%clk 0:02:56]}  c5 {[%clk 0:02:57]} 3. c3 {[%clk 0:02:56]}  Nc6 {[%clk 0:02:56]} 4. g3 {[%clk 0:02:55]}  Nf6 {[%clk 0:02:56]} 5. Bg2 {[%clk 0:02:55]}  b6 {[%clk 0:02:55]} 6. O-O {[%clk 0:02:55]}  Bb7 {[%clk 0:02:56]} 7. Re1 {[%clk 0:02:50]}  d5 {[%clk 0:02:53]} 8. Bf4 {[%clk 0:02:47]}  Bd6 {[%clk 0:02:48]} 9. Nbd2 {[%clk 0:02:36]}  O-O {[%clk 0:02:42]} 10. e3 {[%clk 0:02:18]}  Rc8 {[%clk 0:02:36]} 11. Bxd6 {[%clk 0:02:03]}  Qxd6 {[%clk 0:02:35]} 12. Qa4 {[%clk 0:02:03]}  a6 {[%clk 0:02:26]} 13. dxc5 {[%clk 0:01:58]}  Qxc5 {[%clk 0:02:22]} 14. Rad1 {[%clk 0:01:43]}  b5 {[%clk 0:02:16]} 15. Qf4 {[%clk 0:01:37]}  Ne7 {[%clk 0:02:10]} 16. Ne5 {[%clk 0:01:32]}  Ng6 {[%clk 0:02:05]} 17. Nxg6 {[%clk 0:01:30]}  hxg6 {[%clk 0:02:06]} 18. Nb3 {[%clk 0:01:24]}  Qc7 {[%clk 0:02:02]} 19. Qxc7 {[%clk 0:01:22]}  Rxc7 {[%clk 0:02:02]} 20. h3 {[%clk 0:01:15]}  Rfc8 {[%clk 0:01:55]} 21. g4 {[%clk 0:01:14]}  g5 {[%clk 0:01:54]} 22. Kh2 {[%clk 0:01:13]}  g6 {[%clk 0:01:41]} 23. Kg3 {[%clk 0:01:13]}  Kg7 {[%clk 0:01:41]} 24. f4 {[%clk 0:01:12]}  Nh7 {[%clk 0:01:34]} 25. a3 {[%clk 0:01:11]}  Rd8 {[%clk 0:01:25]} 26. Nd4 {[%clk 0:01:08]}  Rcd7 {[%clk 0:01:19]} 27. Nf3 {[%clk 0:01:07]}  gxf4+ {[%clk 0:01:11]} 28. exf4 {[%clk 0:01:07]}  Nf6 {[%clk 0:01:11]} 29. Ne5 {[%clk 0:01:06]}  Rc7 {[%clk 0:01:11]} 30. Rd4 {[%clk 0:01:01]}  Nd7 {[%clk 0:01:11]} 31. Nxd7 {[%clk 0:00:54]}  Rdxd7 {[%clk 0:01:11]} 32. g5 {[%clk 0:00:44]}  Rc4 {[%clk 0:01:04]} 33. Red1 {[%clk 0:00:44]}  Rdc7 {[%clk 0:01:04]} 34. h4 {[%clk 0:00:44]}  Rc8 {[%clk 0:00:58]} 35. Bf3 {[%clk 0:00:43]}  a5 {[%clk 0:00:55]} 36. Be2 {[%clk 0:00:42]}  R4c5 {[%clk 0:00:55]} 37. h5 {[%clk 0:00:38]}  gxh5 {[%clk 0:00:55]} 38. Bxh5 {[%clk 0:00:36]}  Rh8 {[%clk 0:00:46]} 39. Be2 {[%clk 0:00:35]}  Bc6 {[%clk 0:00:42]} 40. Rf1 {[%clk 0:00:33]}  Bd7 {[%clk 0:00:41]} 41. Kf2 {[%clk 0:00:23]}  Rh2+ {[%clk 0:00:39]} 42. Ke1 {[%clk 0:00:23]}  Rc8 {[%clk 0:00:38]} 43. Rf2 {[%clk 0:00:21]}  Rh1+ {[%clk 0:00:38]} 44. Rf1 {[%clk 0:00:19]}  Rh2 {[%clk 0:00:38]} 45. Rd2 {[%clk 0:00:17]}  b4 {[%clk 0:00:36]} 46. axb4 {[%clk 0:00:17]}  axb4 {[%clk 0:00:36]} 47. cxb4 {[%clk 0:00:18]}  Rb8 {[%clk 0:00:32]} 48. Rd4 {[%clk 0:00:15]}  Ra8 {[%clk 0:00:27]} 49. Rf2 {[%clk 0:00:14]}  Rh1+ {[%clk 0:00:24]} 50. Kd2 {[%clk 0:00:14]}  Raa1 {[%clk 0:00:19]} 51. Bd3 {[%clk 0:00:12]}  Rhd1+ {[%clk 0:00:15]} 52. Kc3 {[%clk 0:00:12]}  Ba4 {[%clk 0:00:11]} 53. b3 {[%clk 0:00:12]}  Rac1+ {[%clk 0:00:10]} 54. Rc2 {[%clk 0:00:11]}  Bd7 {[%clk 0:00:07]} 55. Rxc1 {[%clk 0:00:09]}  Rxc1+ {[%clk 0:00:08]} 56. Kd2 {[%clk 0:00:09]}  Rc7 {[%clk 0:00:07]} 57. b5 {[%clk 0:00:09]}  Rb7 {[%clk 0:00:07]} 58. Rb4 {[%clk 0:00:09]}  Kf8 {[%clk 0:00:06]} 59. b6 {[%clk 0:00:10]}  Ke7 {[%clk 0:00:06]} 60. Ba6 {[%clk 0:00:10]}  Rb8 {[%clk 0:00:06]} 61. Ke3 {[%clk 0:00:08]}  Kd6 {[%clk 0:00:06]} 62. Kd4 {[%clk 0:00:08]}  Kc6 {[%clk 0:00:06]} 63. Bb5+ {[%clk 0:00:07]}  Kd6 {[%clk 0:00:05]} 64. Bxd7 {[%clk 0:00:07]}  Kxd7 {[%clk 0:00:06]} 65. b7 {[%clk 0:00:05]}  Kc6 {[%clk 0:00:06]} 66. Ke5 {[%clk 0:00:04]}  Rxb7 {[%clk 0:00:05]} 67. Rxb7 {[%clk 0:00:04]}  Kxb7 {[%clk 0:00:06]} 68. f5 {[%clk 0:00:05]}  exf5 {[%clk 0:00:05]} 69. Kxd5 {[%clk 0:00:05]}  Kb6 {[%clk 0:00:03]} 70. Ke5 {[%clk 0:00:05]}  f6+ {[%clk 0:00:03]} 71. gxf6 {[%clk 0:00:05]} 1-0


[Site "https://www.chess.com"]

[Event "Titled Tuesday Blitz May 9 Early 2023"]
[White "Tang, Andrew"]
[Black "Fernandez Guillen, Ernesto J."]
[WhiteFideId "2059630"]
[BlackFideId "3512428"]
[WhiteElo "2596"]
[BlackElo "2429"]
[Result "0-1"]
[Round "08"]
[TimeControl "180+2"]
[Date "2023.05.09"]
[WhiteClock "0:00:00"]
[BlackClock "0:00:23"]

1. d4 {[%clk 0:02:50]}  Nf6 {[%clk 0:02:59]} 2. c4 {[%clk 0:02:50]}  e6 {[%clk 0:02:57]} 3. Nc3 {[%clk 0:02:50]}  Bb4 {[%clk 0:02:56]} 4. Qc2 {[%clk 0:02:50]}  c5 {[%clk 0:02:53]} 5. dxc5 {[%clk 0:02:50]}  Na6 {[%clk 0:02:48]} 6. a3 {[%clk 0:02:45]}  Bxc3+ {[%clk 0:02:48]} 7. Qxc3 {[%clk 0:02:46]}  Nxc5 {[%clk 0:02:48]} 8. b4 {[%clk 0:02:46]}  Nce4 {[%clk 0:02:48]} 9. Qb2 {[%clk 0:02:47]}  d5 {[%clk 0:02:48]} 10. c5 {[%clk 0:02:44]}  d4 {[%clk 0:02:41]} 11. f3 {[%clk 0:02:28]}  Nc3 {[%clk 0:02:41]} 12. Bd2 {[%clk 0:02:17]}  Na4 {[%clk 0:02:21]} 13. Qb3 {[%clk 0:02:05]}  Bd7 {[%clk 0:02:16]} 14. Rc1 {[%clk 0:02:03]}  b5 {[%clk 0:01:57]} 15. c6 {[%clk 0:01:48]}  Bc8 {[%clk 0:01:53]} 16. e3 {[%clk 0:01:40]}  a6 {[%clk 0:01:46]} 17. Bd3 {[%clk 0:01:38]}  dxe3 {[%clk 0:01:36]} 18. Bxe3 {[%clk 0:01:38]}  Nd5 {[%clk 0:01:35]} 19. Bd2 {[%clk 0:01:37]}  O-O {[%clk 0:01:29]} 20. Ne2 {[%clk 0:01:36]}  Nab6 {[%clk 0:01:27]} 21. O-O {[%clk 0:01:34]}  e5 {[%clk 0:01:22]} 22. Rfd1 {[%clk 0:01:29]}  Be6 {[%clk 0:01:21]} 23. Qc2 {[%clk 0:01:30]}  h6 {[%clk 0:01:19]} 24. Ng3 {[%clk 0:01:29]}  Rc8 {[%clk 0:01:17]} 25. Ne4 {[%clk 0:01:26]}  Qe7 {[%clk 0:01:08]} 26. Re1 {[%clk 0:01:03]}  Rfd8 {[%clk 0:01:06]} 27. Nc5 {[%clk 0:00:47]}  Rxc6 {[%clk 0:01:06]} 28. Rxe5 {[%clk 0:00:46]}  Qf6 {[%clk 0:01:06]} 29. Rce1 {[%clk 0:00:46]}  Nd7 {[%clk 0:00:57]} 30. Nxd7 {[%clk 0:00:28]}  Bxd7 {[%clk 0:00:58]} 31. Qd1 {[%clk 0:00:06]}  Be6 {[%clk 0:00:54]} 32. Bb1 {[%clk 0:00:04]}  Nf4 {[%clk 0:00:44]} 33. R5e4 {[%clk 0:00:01]}  Rcd6 {[%clk 0:00:36]} 34. Rxf4 {[%clk 0:00:01]}  Qxf4 {[%clk 0:00:31]} 35. Bxf4 {[%clk 0:00:02]}  Rxd1 {[%clk 0:00:31]} 36. Kf2 {[%clk 0:00:03]}  Rxe1 {[%clk 0:00:29]} 37. Kxe1 {[%clk 0:00:03]}  f6 {[%clk 0:00:26]} 38. Be4 {[%clk 0:00:04]}  Bd5 {[%clk 0:00:24]} 39. Bf5 {[%clk 0:00:04]}  Kf7 {[%clk 0:00:23]} 40. Bc7 {[%clk 0:00:04]}  Re8+ {[%clk 0:00:23]} 41. Kf2 {[%clk 0:00:04]}  g6 {[%clk 0:00:23]} 42. Bd3 {[%clk 0:00:03]}  f5 {[%clk 0:00:23]} 43. Bd6 {[%clk 0:00:03]}  Bc4 {[%clk 0:00:23]} 44. Bc2 {[%clk 0:00:00]}  Re2+ {[%clk 0:00:23]} 0-1


[Site "https://www.chess.com"]

[Event "Titled Tuesday Blitz May 9 Early 2023"]
[White "Rozman, Levy"]
[Black "Shimanov, Aleksandr"]
[WhiteFideId "2039877"]
[BlackFideId "4198603"]
[WhiteElo "2376"]
[BlackElo "2631"]
[Result "0-1"]
[Round "08"]
[TimeControl "180+2"]
[Date "2023.05.09"]
[WhiteClock "0:00:02"]
[BlackClock "0:00:21"]

1. e4 {[%clk 0:03:00]}  e6 {[%clk 0:02:58]} 2. c4 {[%clk 0:03:00]}  c5 {[%clk 0:02:53]} 3. Nf3 {[%clk 0:02:58]}  Nc6 {[%clk 0:02:52]} 4. Be2 {[%clk 0:02:56]}  Nf6 {[%clk 0:02:50]} 5. Nc3 {[%clk 0:02:56]}  Qc7 {[%clk 0:02:48]} 6. O-O {[%clk 0:02:51]}  a6 {[%clk 0:02:46]} 7. h3 {[%clk 0:02:48]}  Bd6 {[%clk 0:02:43]} 8. b3 {[%clk 0:02:44]}  Nd4 {[%clk 0:02:35]} 9. Bb2 {[%clk 0:02:40]}  O-O {[%clk 0:02:34]} 10. Bd3 {[%clk 0:02:36]}  Nxf3+ {[%clk 0:02:29]} 11. Qxf3 {[%clk 0:02:35]}  Be5 {[%clk 0:02:30]} 12. Qe2 {[%clk 0:02:15]}  b6 {[%clk 0:02:28]} 13. f4 {[%clk 0:02:06]}  Bxf4 {[%clk 0:02:16]} 14. Rxf4 {[%clk 0:01:46]}  Qxf4 {[%clk 0:02:16]} 15. Rf1 {[%clk 0:01:38]}  Qh4 {[%clk 0:02:06]} 16. e5 {[%clk 0:01:29]}  Nh5 {[%clk 0:02:05]} 17. Qe4 {[%clk 0:00:52]}  Qxe4 {[%clk 0:02:01]} 18. Nxe4 {[%clk 0:00:53]}  Bb7 {[%clk 0:01:55]} 19. Nd6 {[%clk 0:00:45]}  Bc6 {[%clk 0:01:55]} 20. g4 {[%clk 0:00:40]}  Ng3 {[%clk 0:01:54]} 21. Rf2 {[%clk 0:00:38]}  h5 {[%clk 0:01:47]} 22. Kh2 {[%clk 0:00:33]}  h4 {[%clk 0:01:47]} 23. a4 {[%clk 0:00:32]}  b5 {[%clk 0:00:32]} 24. cxb5 {[%clk 0:00:21]}  axb5 {[%clk 0:00:32]} 25. Nxb5 {[%clk 0:00:19]}  Rfb8 {[%clk 0:00:26]} 26. g5 {[%clk 0:00:19]}  g6 {[%clk 0:00:25]} 27. Rf4 {[%clk 0:00:19]}  Bd5 {[%clk 0:00:24]} 28. Rxh4 {[%clk 0:00:16]}  Nf5 {[%clk 0:00:22]} 29. Bxf5 {[%clk 0:00:13]}  gxf5 {[%clk 0:00:23]} 30. Ba3 {[%clk 0:00:07]}  Bxb3 {[%clk 0:00:23]} 31. Bxc5 {[%clk 0:00:08]}  Rxa4 {[%clk 0:00:23]} 32. Rxa4 {[%clk 0:00:06]}  Bxa4 {[%clk 0:00:24]} 33. Nc3 {[%clk 0:00:07]}  Bc6 {[%clk 0:00:24]} 34. Kg3 {[%clk 0:00:05]}  Rb2 {[%clk 0:00:22]} 35. Be3 {[%clk 0:00:05]}  Rb4 {[%clk 0:00:22]} 36. Ne2 {[%clk 0:00:03]}  Re4 {[%clk 0:00:21]} 37. Bf4 {[%clk 0:00:02]}  Rxe2 {[%clk 0:00:21]} 0-1


[Site "https://www.chess.com"]

[Event "Titled Tuesday Blitz May 9 Early 2023"]
[White "Harshavardhan G B"]
[Black "Demchenko, Anton"]
[WhiteFideId "25059009"]
[BlackFideId "4160258"]
[WhiteElo "2323"]
[BlackElo "2545"]
[Result "0-1"]
[Round "08"]
[TimeControl "180+2"]
[Date "2023.05.09"]
[WhiteClock "0:00:24"]
[BlackClock "0:00:07"]

1. e4 {[%clk 0:03:00]}  e5 {[%clk 0:02:59]} 2. Nc3 {[%clk 0:03:00]}  Nc6 {[%clk 0:02:58]} 3. Bc4 {[%clk 0:02:59]}  Nf6 {[%clk 0:02:57]} 4. d3 {[%clk 0:02:59]}  Bb4 {[%clk 0:02:57]} 5. Ne2 {[%clk 0:02:59]}  d5 {[%clk 0:02:57]} 6. exd5 {[%clk 0:02:59]}  Nxd5 {[%clk 0:02:58]} 7. O-O {[%clk 0:02:59]}  Be6 {[%clk 0:02:57]} 8. Bb3 {[%clk 0:02:53]}  Qd7 {[%clk 0:02:50]} 9. f4 {[%clk 0:02:50]}  f6 {[%clk 0:02:38]} 10. Kh1 {[%clk 0:02:49]}  O-O-O {[%clk 0:02:36]} 11. a3 {[%clk 0:02:41]}  Be7 {[%clk 0:02:32]} 12. f5 {[%clk 0:02:24]}  Bf7 {[%clk 0:02:31]} 13. Ne4 {[%clk 0:02:21]}  g6 {[%clk 0:02:09]} 14. N2g3 {[%clk 0:02:20]}  Nd4 {[%clk 0:02:09]} 15. Bxd5 {[%clk 0:02:09]}  Bxd5 {[%clk 0:02:10]} 16. fxg6 {[%clk 0:02:09]}  f5 {[%clk 0:01:43]} 17. g7 {[%clk 0:01:59]}  Rhg8 {[%clk 0:01:42]} 18. Nc3 {[%clk 0:01:55]}  Bc6 {[%clk 0:01:33]} 19. Nh5 {[%clk 0:01:52]}  Qe6 {[%clk 0:01:21]} 20. Be3 {[%clk 0:01:44]}  Qg6 {[%clk 0:01:21]} 21. Rf2 {[%clk 0:01:10]}  Bh4 {[%clk 0:01:20]} 22. Rd2 {[%clk 0:01:01]}  Nf3 {[%clk 0:01:20]} 23. gxf3 {[%clk 0:00:42]}  Qxh5 {[%clk 0:01:19]} 24. Ne4 {[%clk 0:00:43]}  fxe4 {[%clk 0:01:17]} 25. fxe4 {[%clk 0:00:43]}  Qxd1+ {[%clk 0:01:15]} 26. Raxd1 {[%clk 0:00:44]}  Rxg7 {[%clk 0:01:15]} 27. Rf1 {[%clk 0:00:45]}  Be7 {[%clk 0:01:06]} 28. Rg2 {[%clk 0:00:41]}  Rxg2 {[%clk 0:01:03]} 29. Kxg2 {[%clk 0:00:42]}  Rf8 {[%clk 0:01:02]} 30. Re1 {[%clk 0:00:39]}  Kd7 {[%clk 0:01:00]} 31. b4 {[%clk 0:00:32]}  b6 {[%clk 0:00:59]} 32. c4 {[%clk 0:00:31]}  Ke6 {[%clk 0:00:59]} 33. Kg3 {[%clk 0:00:24]}  Rd8 {[%clk 0:00:55]} 34. Rd1 {[%clk 0:00:24]}  Bxe4 {[%clk 0:00:54]} 35. d4 {[%clk 0:00:25]}  Rg8+ {[%clk 0:00:50]} 36. Kf2 {[%clk 0:00:24]}  Bh4+ {[%clk 0:00:50]} 37. Kf1 {[%clk 0:00:23]}  Rf8+ {[%clk 0:00:49]} 38. Kg1 {[%clk 0:00:22]}  Bf3 {[%clk 0:00:47]} 39. Rd2 {[%clk 0:00:19]}  e4 {[%clk 0:00:38]} 40. d5+ {[%clk 0:00:19]}  Kf5 {[%clk 0:00:38]} 41. c5 {[%clk 0:00:15]}  Bg5 {[%clk 0:00:35]} 42. Kf2 {[%clk 0:00:15]}  Bh4+ {[%clk 0:00:34]} 43. Kg1 {[%clk 0:00:15]}  Rd8 {[%clk 0:00:31]} 44. d6 {[%clk 0:00:14]}  cxd6 {[%clk 0:00:29]} 45. cxd6 {[%clk 0:00:15]}  Rd7 {[%clk 0:00:27]} 46. h3 {[%clk 0:00:15]}  Bg3 {[%clk 0:00:26]} 47. Rd5+ {[%clk 0:00:14]}  Ke6 {[%clk 0:00:25]} 48. Rg5 {[%clk 0:00:15]}  Bxd6 {[%clk 0:00:25]} 49. Kf2 {[%clk 0:00:15]}  Be5 {[%clk 0:00:24]} 50. Rg8 {[%clk 0:00:16]}  Rc7 {[%clk 0:00:23]} 51. Re8+ {[%clk 0:00:16]}  Kd6 {[%clk 0:00:16]} 52. Rd8+ {[%clk 0:00:15]}  Ke7 {[%clk 0:00:16]} 53. Rd2 {[%clk 0:00:15]}  Ke6 {[%clk 0:00:14]} 54. Bg5 {[%clk 0:00:15]}  Kf5 {[%clk 0:00:14]} 55. h4 {[%clk 0:00:15]}  Rc3 {[%clk 0:00:09]} 56. Rd5 {[%clk 0:00:14]}  Rd3 {[%clk 0:00:08]} 57. Rxd3 {[%clk 0:00:13]}  exd3 {[%clk 0:00:09]} 58. Kxf3 {[%clk 0:00:14]}  Bd4 {[%clk 0:00:06]} 59. Bd2 {[%clk 0:00:13]}  Ke5 {[%clk 0:00:05]} 60. a4 {[%clk 0:00:13]}  a6 {[%clk 0:00:05]} 61. b5 {[%clk 0:00:13]}  axb5 {[%clk 0:00:05]} 62. axb5 {[%clk 0:00:14]}  h5 {[%clk 0:00:05]} 63. Bh6 {[%clk 0:00:13]}  Kd5 {[%clk 0:00:05]} 64. Bd2 {[%clk 0:00:12]}  Kc4 {[%clk 0:00:06]} 65. Ke4 {[%clk 0:00:13]}  Bc5 {[%clk 0:00:05]} 66. Bf4 {[%clk 0:00:10]}  Bb4 {[%clk 0:00:05]} 67. Ke3 {[%clk 0:00:10]}  Kc3 {[%clk 0:00:04]} 68. Kf2 {[%clk 0:00:09]}  Kc2 {[%clk 0:00:04]} 69. Kf3 {[%clk 0:00:09]}  d2 {[%clk 0:00:04]} 70. Bxd2 {[%clk 0:00:10]}  Kxd2 {[%clk 0:00:05]} 71. Ke4 {[%clk 0:00:11]}  Kc3 {[%clk 0:00:04]} 72. Kf5 {[%clk 0:00:12]}  Kc4 {[%clk 0:00:04]} 73. Kg5 {[%clk 0:00:13]}  Be1 {[%clk 0:00:05]} 74. Kxh5 {[%clk 0:00:13]}  Kxb5 {[%clk 0:00:05]} 75. Kg4 {[%clk 0:00:14]}  Bxh4 {[%clk 0:00:06]} 76. Kxh4 {[%clk 0:00:14]}  Kc4 {[%clk 0:00:07]} 77. Kg3 {[%clk 0:00:15]}  Kd3 {[%clk 0:00:07]} 78. Kf2 {[%clk 0:00:16]}  Kd2 {[%clk 0:00:06]} 79. Kf3 {[%clk 0:00:17]}  b5 {[%clk 0:00:07]} 80. Ke4 {[%clk 0:00:18]}  b4 {[%clk 0:00:07]} 81. Kd4 {[%clk 0:00:18]}  b3 {[%clk 0:00:08]} 82. Kc4 {[%clk 0:00:19]}  b2 {[%clk 0:00:09]} 83. Kb3 {[%clk 0:00:20]}  b1=Q+ {[%clk 0:00:09]} 84. Ka3 {[%clk 0:00:21]}  Qb5 {[%clk 0:00:08]} 85. Ka2 {[%clk 0:00:21]}  Kc2 {[%clk 0:00:09]} 86. Ka1 {[%clk 0:00:21]}  Qb6 {[%clk 0:00:07]} 87. Ka2 {[%clk 0:00:22]}  Qb7 {[%clk 0:00:08]} 88. Ka1 {[%clk 0:00:23]}  Qb8 {[%clk 0:00:08]} 89. Ka2 {[%clk 0:00:24]}  Qa8# {[%clk 0:00:07]} 0-1


[Site "https://www.chess.com"]